Cogmind - Beta 14 @@@ ROGUE MODE // 2024.11.07 @ 18:24:13 Player: Shimmyarah Result: Self-destructed Performance ------------- Evolutions (3) 1500 Regions Visited (6) 1200 Robots Destroyed (16) 80 Value Destroyed (396) 396 Prototype IDs (3) 60 Alien Tech Used (0) 0 Bonus (-58) -58 TOTAL SCORE: 3178 Bonus ------- Friendly Fire -58 Cogmind --------- Core Integrity 623/700 Matter 273/300 Energy 0/100 System Corruption 4% Temperature Cool (0) Movement Hovering (116) Ox1 Location -7/Factory Parts ------- > --- POWER (2) -------- (None) > --- PROPULSION (3) --- Gravmag System Gravmag System > --- UTILITY (5) ------ Small Storage Unit Experimental Sensor Array Seismic Detector Transmission Jammer Sensor Drone Bay (0/20) > --- WEAPON (3) ------- Field Laser (fused) Minigun High-powered Shotgun > --- INVENTORY (8) ---- Visual Processing Unit Improved Signal Interpreter Terrain Scan Processor Hacking Suite System Shield Pulse Rifle Remote Datajack Peak State ------------ > --- POWER ------------ Light Nuclear Core Light Nuclear Core > --- PROPULSION ------- Gravmag System Gravmag System Gravmag System > --- UTILITY ---------- Small Storage Unit Experimental Sensor Array Improved Terrain Scanner Transmission Jammer Sensor Drone Bay > --- WEAPON ----------- Improved Spread Laser Minigun High-powered Shotgun > --- INVENTORY -------- Visual Processing Unit Improved Signal Interpreter Terrain Scan Processor Seismic Detector Hacking Suite System Shield Pulse Rifle Remote Datajack [Rating: 56] Favorites ----------- Power Ion Engine Engine Ion Engine Power Core Light Nuclear Core Propulsion Light Treads Treads Light Treads Hover Unit Gravmag System Utility Small Storage Unit Device Improved Terrain Scanner Storage Small Storage Unit Weapon Assault Rifle Energy Gun Field Laser Energy Cannon Ion Cannon Ballistic Gun Assault Rifle Special Weapon Mining Laser Build | -11 -10 -10 -10 -9 -8 -7 ------- Run | Yrd Mat Min Exi Min Mat Fac Slots Evolved 6 | . . . . . 4 2 Power 1 | . . . . . 1 . Propulsion 1 | . . . . . 1 . Utility 3 | . . . . . 1 2 Weapon 1 | . . . . . 1 . Parts Attached 36 | 7 . . . 3 9 17 Power 4 | 1 . . . . 1 2 Engine 1 | 1 . . . . . . Core 3 | . . . . . 1 2 Reactor . | . . . . . . . Propulsion 7 | 2 . . . . 1 4 Treads 3 | 2 . . . . 1 . Leg . | . . . . . . . Wheel . | . . . . . . . Hover 4 | . . . . . . 4 Flight . | . . . . . . . Utility 12 | 2 . . . 3 2 5 Device 11 | 1 . . . 3 2 5 Storage 1 | 1 . . . . . . Processor . | . . . . . . . Hackware . | . . . . . . . Protection . | . . . . . . . Artifact . | . . . . . . . Weapon 13 | 2 . . . . 5 6 Energy Gun 3 | . . . . . . 3 Energy Cannon 2 | . . . . . 2 . Ballistic Gun 5 | 2 . . . . 1 2 Ballistic Cannon . | . . . . . . . Launcher . | . . . . . . . Special Weapon 3 | . . . . . 2 1 Impact Weapon . | . . . . . . . Slashing Weapon . | . . . . . . . Piercing Weapon . | . . . . . . . Special Melee Weapon . | . . . . . . . Unidentified Prototypes 3 | . . . . 2 . 1 Parts Lost 5 | . . . . . 1 4 Power 2 | . . . . . . 2 Propulsion 2 | . . . . . 1 1 Utility 1 | . . . . . . 1 Weapon . | . . . . . . . Highest Loss Streak 3 | . . . . . 1 3 To Critical Strikes . | . . . . . . . Average Slot Usage (%) 96 | . 100 100 100 100 93 91 Engine 10 | . 14 14 14 14 9 3 Core 4 | . . . . . 8 9 Treads 20 | . 28 28 28 28 21 4 Hover 4 | . . . . . . 14 Device 18 | . 14 14 14 14 18 27 Storage 11 | . 14 14 14 14 9 7 Energy Gun 1 | . . . . . . 6 Energy Cannon 2 | . . . . . 8 2 Ballistic Gun 21 | . 28 28 28 28 17 12 Peak Build Rating 56 | 9 9 10 10 16 23 56 Average Rating 21 | 5 9 9 10 10 21 44 On Entrance 10 | . 9 9 10 10 10 23 Naked Turns . | . . . . . . . Heaviest Build 44 | 15 15 15 15 15 40 44 Greatest Support 60 | 40 40 40 40 40 60 40 Greatest Overweight (x) 4 | . . . . . . 4 Average Overweight (x) . | . . . . . . . Largest Inventory Capacity 8 | 8 8 8 8 8 8 8 Average Capacity 7 | 7 8 8 8 8 8 8 Most Carried 8 | 4 2 3 3 4 8 8 Average Carried 4 | . 2 2 3 3 4 7 Final Capacity 8 | 8 8 8 8 8 8 8 Final Carried 8 | 2 2 3 3 4 8 7 Class Distribution -------------------- 54% | Mutant 29% | Skirmisher 15% | Gunner Dominant Class ---------------- Mutant | -10/Materials Mutant | -10/Mines Mutant | -10/Exiles Mutant | -9/Mines Gunner | -8/Materials Skirmisher | -7/Factory Resources | -11 -10 -10 -10 -9 -8 -7 ----------- Run | Yrd Mat Min Exi Min Mat Fac Matter Collected 780 | 306 . . . 3 146 325 Remotely . | . . . . . . . Salvage Created 673 | 111 . . . . 146 416 Parts 41 | 8 . . . . 10 23 Haulers Intercepted . | . . . . . . . Recyclers Shooed 1 | . . . . . . 1 Parts Field Recycled . | . . . . . . . Retrieved Matter . | . . . . . . . Parts Self-Destructed . | . . . . . . . Prevented . | . . . . . . . Kills | -11 -10 -10 -10 -9 -8 -7 ------- Run | Yrd Mat Min Exi Min Mat Fac Combat Hostiles Destroyed 7 | . . . . . 3 4 Guns 6 | . . . . . 2 4 Cannons 1 | . . . . . 1 . Classes Destroyed 9 | 2 . . . . 3 4 Worker 1 | . . . . . . 1 Tunneler 4 | 2 . . . . 1 1 Recycler 3 | 1 . . . . . 2 Watcher 1 | . . . . . . 1 Swarmer 1 | . . . . . 1 . Grunt 2 | . . . . . . 2 Sentry 2 | . . . . . 1 1 Programmer 1 | . . . . . . 1 Heavy 1 | . . . . . 1 . Best Kill Streak 3 | 2 . . . . 2 3 Combat Bots Only 2 | . . . . . 2 2 Max Kills in Single Turn 2 | 1 . . . . 1 2 Gunslinging 1 | . . . . . . 1 Exploded . | . . . . . . . Melee . | . . . . . . . Uniques/NPCs Destroyed . | . . . . . . . Combat | -11 -10 -10 -10 -9 -8 -7 -------- Run | Yrd Mat Min Exi Min Mat Fac Hostile Shots Fired 109 | . . . . . 37 72 Missed 44 | . . . . . 14 30 Damage Taken 1151 | . 19 . . . 464 668 Core 105 | . . . . . 28 77 Absorbed by Shields . | . . . . . . . Core Remaining (%) 98 | 100 . . . 100 94 . Volleys Fired 54 | 6 . . . . 11 37 Largest 3 | 2 . . . . 3 3 Hottest 148 | 40 . . . . 100 148 Shots Fired 128 | 12 . . . . 27 89 Gun 105 | 12 . . . . 16 77 Cannon 16 | . . . . . 8 8 Launcher . | . . . . . . . Special 7 | . . . . . 3 4 Kinetic 77 | 12 . . . . 16 49 Thermal 51 | . . . . . 11 40 Explosive . | . . . . . . . Electromagnetic . | . . . . . . . Robot Hit Streak 13 | 4 . . . . 7 13 Robot Miss Streak 12 | 2 . . . . 3 12 Penetration Max . | . . . . . . . Secondary Targets 1 | . . . . . . 1 Max Gunslinging Chain 1 | . . . . . . 1 Shots Hit Robots 66 | 7 . . . . 16 43 Core Hits 30 | 4 . . . . 8 18 Critical Kills . | . . . . . . . Critical Parts Destroyed . | . . . . . . . Critical Strikes . | . . . . . . . Melee Attacks . | . . . . . . . Impact . | . . . . . . . Slashing . | . . . . . . . Piercing . | . . . . . . . Sneak Attacks . | . . . . . . . Combat Hostiles . | . . . . . . . Follow-up Attacks . | . . . . . . . Damage Inflicted 1375 | 77 . 11 . 30 279 978 Guns 1042 | 77 . . . . 112 853 Cannons 249 | . . . . . 161 88 Explosions . | . . . . . . . Melee . | . . . . . . . Ramming 84 | . . 11 . 30 6 37 Kinetic 788 | 77 . . . . 112 599 Thermal 503 | . . . . . 161 342 Explosive . | . . . . . . . Electromagnetic . | . . . . . . . Impact . | . . . . . . . Slashing . | . . . . . . . Piercing . | . . . . . . . Highest Corruption 4 | . . . . . . 4 Average Corruption 2 | . . . . . . 2 Corruption Purged . | . . . . . . . Corruption Blocked . | . . . . . . . Effects 11 | . . . . . . 11 Matter Fused 2 | . . . . . . 2 Heat Flow Errors 3 | . . . . . . 3 Energy Discharges 1 | . . . . . . 1 Parts Fused 1 | . . . . . . 1 Data Loss (minor) 3 | . . . . . . 3 Data Loss (major) 1 | . . . . . . 1 Overload Shots . | . . . . . . . Overflow Damage 17 | . . . . . . 17 Projectiles 17 | . . . . . . 17 Explosions . | . . . . . . . Melee . | . . . . . . . Knockbacks 2 | . . . . 1 . 1 Impact 2 | . . . . 1 . 1 Kinetic . | . . . . . . . Secondary . | . . . . . . . Self-Inflicted Damage 17 | . . . . . . 17 Shots . | . . . . . . . Rammed 12 | . . 2 . 4 1 5 Targets Rammed 12 | . . 2 . 4 1 5 Kicked . | . . . . . . . Crushed . | . . . . . . . Highest Temperature 503 | . . . . . 132 503 Average Temperature 139 | . . . . . 55 158 Received Heat Transfer 66 | . . . . . 18 48 Effects 5 | . . . . . . 5 Shutdowns 2 | . . . . . . 2 Interference 2 | . . . . . . 2 Short Circuit 1 | . . . . . . 1 Siege Activations . | . . . . . . . Robots Corrupted . | . . . . . . . Combat Hostiles . | . . . . . . . Parts Fried . | . . . . . . . Impact Corruptions . | . . . . . . . Robots Melted . | . . . . . . . Combat Hostiles . | . . . . . . . Parts Melted 1 | . . . . . . 1 Heat Transferred 888 | . . . . . 259 629 Parts Sabotaged . | . . . . . . . Parts Stolen . | . . . . . . . Parts Stripped . | . . . . . . . Power Chain Reactions . | . . . . . . . Alert | -11 -10 -10 -10 -9 -8 -7 ------- Run | Yrd Mat Min Exi Min Mat Fac Peak Influence 128 | 15 9 3 . . 76 128 Initial 34 | . 9 3 . . . 34 Average 24 | 6 9 3 . . 32 42 Maximum Alert Level . | . . . . . . . Low Security (%) 100 | 100 100 100 . 100 100 100 Level 1 . | . . . . . . . Level 2 . | . . . . . . . Level 3 . | . . . . . . . Level 4 . | . . . . . . . Level 5 . | . . . . . . . High Security . | . . . . . . . Max Security . | . . . . . . . Squads Dispatched 16 | . 1 . . . 10 5 Investigation 2 | . 1 . . . 1 . Extermination 2 | . . . . . . 2 Reinforcement 3 | . . . . . 3 . Assault . | . . . . . . . Garrison 9 | . . . . . 6 3 Intercept . | . . . . . . . Searches Triggered . | . . . . . . . Construction Impeded . | . . . . . . . Haulers Reinforced . | . . . . . . . Active Scanning Responses . | . . . . . . . Cargo Convoy Interrupts . | . . . . . . . Stealth | -11 -10 -10 -10 -9 -8 -7 --------- Run | Yrd Mat Min Exi Min Mat Fac Distress Signals 2 | . . . . . 2 . Communications Jammed . | . . . . . . . Distress Signals . | . . . . . . . Times Spotted 24 | . . . . . 10 14 Peak Tracking Total 5 | . 1 . . . 4 5 Tactical Retreats 4 | . . . . . 2 2 Traps | -11 -10 -10 -10 -9 -8 -7 ------- Run | Yrd Mat Min Exi Min Mat Fac Traps Triggered 3 | . 2 . . . 1 . Indirectly . | . . . . . . . Trap Hack Attempts . | . . . . . . . Triggered . | . . . . . . . Disarmed . | . . . . . . . Reprogrammed . | . . . . . . . Reused . | . . . . . . . Traps Extracted . | . . . . . . . Installed . | . . . . . . . Triggered . | . . . . . . . Machines | -11 -10 -10 -10 -9 -8 -7 ---------- Run | Yrd Mat Min Exi Min Mat Fac Machines Disabled . | . . . . . . . Max in Single Turn . | . . . . . . . Machines Repaired . | . . . . . . . Machines Dismantled . | . . . . . . . Machines Sabotaged . | . . . . . . . Overloaded Fab Kills . | . . . . . . . Hacking | -11 -10 -10 -10 -9 -8 -7 --------- Run | Yrd Mat Min Exi Min Mat Fac Machines Accessed 7 | . 1 . 4 1 . 1 Terminals 2 | . 1 . . . . 1 Fabricators . | . . . . . . . Repair Stations . | . . . . . . . Recycling Units . | . . . . . . . Scanalyzers . | . . . . . . . Garrison Access . | . . . . . . . Total Hacks 7 | . 1 . 4 1 . 1 Successful 6 | . . . 4 1 . 1 Failed 1 | . 1 . . . . . Catastrophic 1 | . 1 . . . . . Database Lockouts . | . . . . . . . Manual 11 | . 1 . 9 . . 1 Terminals 2 | . 1 . . . . 1 Fabricators . | . . . . . . . Repair Stations . | . . . . . . . Recycling Units . | . . . . . . . Scanalyzers . | . . . . . . . Garrison Access . | . . . . . . . Terminal Hacks 6 | . . . 4 1 . 1 Record 4 | . . . 4 . . . Open Door 1 | . . . . 1 . . Open DSF 1 | . . . . . . 1 Fabricator Hacks . | . . . . . . . Repair Station Hacks . | . . . . . . . Recycling Unit Hacks . | . . . . . . . Scanalyzer . | . . . . . . . Garrison Access Hacks . | . . . . . . . Unauthorized Hacks . | . . . . . . . Terminals . | . . . . . . . Fabricators . | . . . . . . . Repair Stations . | . . . . . . . Recycling Units . | . . . . . . . Scanalyzers . | . . . . . . . Garrison Access . | . . . . . . . Data Cores Recovered 1 | . . . . . . 1 Used . | . . . . . . . Hacking Detections 1 | . 1 . . . . . Full Trace Events . | . . . . . . . Feedback Events . | . . . . . . . Feedback Blocked . | . . . . . . . Robot Schematics Acquired . | . . . . . . . Robots Built . | . . . . . . . Authchips . | . . . . . . . Time . | . . . . . . . Total Robot Build Rating . | . . . . . . . Part Schematics Acquired . | . . . . . . . Parts Built . | . . . . . . . Authchips . | . . . . . . . Time . | . . . . . . . Total Part Build Rating . | . . . . . . . Parts Repaired . | . . . . . . . Time . | . . . . . . . Parts Recycled . | . . . . . . . Recycled Matter . | . . . . . . . Retrieved Matter . | . . . . . . . Retrieved Components . | . . . . . . . Parts Scanalyzed . | . . . . . . . Part Schematics Acquired . | . . . . . . . Parts Damaged . | . . . . . . . Bothacking | -11 -10 -10 -10 -9 -8 -7 ------------ Run | Yrd Mat Min Exi Min Mat Fac Used RIF Installer . | . . . . . . . Robots Hacked . | . . . . . . . Non-combat . | . . . . . . . Combat . | . . . . . . . Robot Hacks Applied . | . . . . . . . Relay Couplers Released . | . . . . . . . Fabnet Peak Effective % . | . . . . . . . Robots Rewired . | . . . . . . . Allies Hacked . | . . . . . . . Hacks Repelled . | . . . . . . . Allies | -11 -10 -10 -10 -9 -8 -7 -------- Run | Yrd Mat Min Exi Min Mat Fac Total Allies . | . . . . . . . Largest Group . | . . . . . . . Highest-Rated Group . | . . . . . . . Highest-Rated Ally . | . . . . . . . Total Orders . | . . . . . . . Ally Attacks . | . . . . . . . Total Damage . | . . . . . . . Kills . | . . . . . . . Allies Corrupted 2 | . . . . . 2 . Allies Melted . | . . . . . . . Intel | -11 -10 -10 -10 -9 -8 -7 ------- Run | Yrd Mat Min Exi Min Mat Fac Robot Analysis Total . | . . . . . . . Derelict Logs Recovered 2 | . . 1 . 1 . . Drone Launches 67 | . . . . . 49 18 Drone Recoveries 47 | . . . . . 33 14 Exploration | -11 -10 -10 -10 -9 -8 -7 ------------- Run | Yrd Mat Min Exi Min Mat Fac Turns Passed 4012 | 92 216 209 993 664 746 1092 Spaces Moved 2453 | 46 136 129 621 408 429 684 Core 13 | 13 . . . . . . Treads 1889 | 33 136 129 621 408 429 133 Legs . | . . . . . . . Wheels . | . . . . . . . Hover 551 | . . . . . . 551 Flight . | . . . . . . . Fastest Speed 50 | 50 160 160 160 160 160 112 Average Speed 152 | 128 160 160 160 160 160 136 Slowest Speed 300 | 160 160 160 160 160 160 300 Overloaded Moves . | . . . . . . . Propulsion Burnouts . | . . . . . . . Robots Hopped . | . . . . . . . Cave-ins Triggered . | . . . . . . . Exploration Rate (%) 34 | 4 32 27 92 57 18 14 Regions Visited 6 Branch Regions 3 Pre-discovered Areas . | . . . . . . . Known Exits Taken . | . . . . . . . Unknown Exits Taken 6 | 1 1 1 1 1 1 . Scrap Searched . | . . . . . . . Spaces Dug . | . . . . . . . Terrain Destroyed 2 | . . . . . 2 . Melee . | . . . . . . . Projectile 2 | . . . . . 2 . AOE . | . . . . . . . Terrain Rammed . | . . . . . . . Walls Destroyed . | . . . . . . . Machines Disabled . | . . . . . . . Actions | -11 -10 -10 -10 -9 -8 -7 --------- Run | Yrd Mat Min Exi Min Mat Fac Total 2592 | 67 135 131 620 415 459 765 Wait . | . . . . . . . Move 2447 | 45 135 128 620 407 428 684 Hop . | . . . . . . . Pick Up 29 | 9 . 1 . 1 9 9 Fast Attach 7 | . . . . . . 7 Attach 16 | 7 . . . . 4 5 Detach . | . . . . . . . Swap 13 | . . . . 3 5 5 Drop 14 | . . . . . 1 13 Fire 54 | 6 . . . . 11 37 Melee . | . . . . . . . Ram 5 | . . . . . . 5 Kick . | . . . . . . . Crush 7 | . . 2 . 4 1 . Escape Stasis . | . . . . . . . Rewire . | . . . . . . . Trap . | . . . . . . . Miscellaneous . | . . . . . . . Route ------- -11/Scrapyard -10/Materials -10/Mines -10/Exiles (discovered 2 exits: *Min x2) -9/Mines -8/Materials -7/Factory (discovered 1 exit: [*Sto]) History --------- Turn | Location | Event 22 | -11/Scrapyard | Discovered new exit (range 15) 93 | -11/Scrapyard | Entered Materials 297 | -10/Materials | Discovered new exit (range 5) 308 | -10/Materials | Build established: Mutant 309 | -10/Materials | Entered Mines 481 | -10/Mines | Found a damaged Exp. Sensor Array with a note attached 484 | -10/Mines | Found Prototype Device 493 | -10/Mines | Learned Materials trap positions 507 | -10/Mines | Deemed a non-threat by the Exiles lab entrance 509 | -10/Mines | Discovered new exit (range 5) 518 | -10/Mines | Entered Exiles 518 | -10/Exiles | Found Exiles lab abandoned 1034 | -10/Exiles | Discovered new exit (range 14) 1488 | -10/Exiles | Discovered new exit (range 15) 1511 | -10/Exiles | Entered Mines 1514 | -9/Mines | Met a Derelict bent on vengeance 1550 | -9/Mines | Discovered new exit (range 15) 1643 | -9/Mines | Learned Materials interactive machine intel 1680 | -9/Mines | Found the Drone Emporium 1697 | -9/Mines | Found Prototype Device 1698 | -9/Mines | Identified Exp. Sensor Array 1700 | -9/Mines | Identified Sensor Drone Bay 2175 | -9/Mines | Entered Materials 2175 | -8/Materials | Evolved 4 slots: Power x1, Propulsion x1, Utility x1, Weapon x1 2176 | -8/Materials | Loaded intel: 23 trap records 2177 | -8/Materials | Loaded intel: 19 interactive machine locations 2280 | -8/Materials | Garrison activated, responded to threat 2559 | -8/Materials | Lost 3 allies 2597 | -8/Materials | Garrison activated, responded to threat 2599 | -8/Materials | Build established: Gunner 2646 | -8/Materials | Lost 6 allies 2918 | -8/Materials | Discovered new exit (range 3) 2921 | -8/Materials | Entered Factory 2921 | -7/Factory | Accompanied by 6 allies 2921 | -7/Factory | Evolved 2 slots: Utility x2 3264 | -7/Factory | Build established: Skirmisher 3311 | -7/Factory | Garrison activated, responded to threat 3840 | -7/Factory | Lost 3 parts (1p1n1u) 3840 | -7/Factory | Lost 6 allies 3994 | -7/Factory | Discovered new exit (range 16) 4013 | -7/Factory | Self-destructed Last Messages --------------- 03963_ K-01 Serf knocked back. 03964_ K-01 Serf collects debris. 03964_ U-05 Engineer lays Concrete. 03966_ K-01 Serf collects debris. 03966_ U-05 Engineer lays Concrete. 03967_ K-01 Serf collects debris. 03969_ U-05 Engineer lays Concrete. 03971_ K-01 Serf collects debris. 03972_ U-05 Engineer lays Concrete. 03974_ K-01 Serf collects debris. 03976_ U-05 Engineer lays Concrete. 03986_ ALERT: Cargo convoy en route, clear transfer corridor. 03990_ System corrupted: Substantial component data lost. 03994_ EXIT=FOUND 03998_ Lgt. Nuclear Core destroyed. 04002_ Penetrated by Slug. 04010_ Sensor Drone released from Sensor Drone Bay. Map ----- +----------------------------------------------------+ | #??????????????????????????????????????????????? | | #??????????????????????????????????????????????? | | #??????????????????????????????????????????????? | | #??????????????????????????????????????????????? | | #??????????????????????????????????????????????? | | #??????????????????????????????????????????????? | | #??????????????????????????????????????????????? | | #??????????????????????????????????????????????? | | #??????????????????????????????????????????????? | | #??????????????????????????????????????????????? | | #??????????????????????????????????????????????? | | #??????????????????????????? ?????????????????? | | #?????????????????????????? "????????????????? | | #?????????????????????????? ""???????????????? | | ###?????????###????####+### ""???????????????? | | "#????????? ] ????# ""???????????????? | | ""#???????? ??# """"?????????????? | | ""#????????""" ""??# k """??????????????? | | ""#????????""" ""??# ??????????????? | | ""#????????""" ""??# r """??????????????? | | T"#?????????? ??# """??????????????? | | ""#?????????###;+### """??????????????? | | ""#?????????# """??????????????? | | ""#?????????# % """??????????????? | | ""#?????????# % % """"""???r???????? | | "########### n n @ ????????? | | ### """ # % n ????????? | | #?# / "Y" # ### ????????? | | #?# " " # % #?# ?????????? | | #?# k # #?# ?????????? | | % #?#! + #?# ??????????? | | #### """"" # #?# "" ??????????? | | + """"" # #?######## """ ??????????? | | ###### """ # #????????? "T ??????????????? | | ###??# # #?????????? ""???????????????? | | ?????########## #?????????? "???????????????? | | ??????????????# #??????????? ???????????????? | | ??????????????# #???????????? ??????????????? | | ??????????????# #????????????????????????????? | | ??????????????# #????????????????????????????? | | ????????#?????? H #????????????????????????????? | | ??????????????? ????????????????????????????? | | ??????????????? ! ????????????????????????????? | | ??????????????? ???????????????????????????? | | ??????????????? ?????????????????????????????? | | ???????????????